fUST/lending_fUST_20250928
["ID","MTS","AMOUNT","RATE_DAILY","PERIOD"]
[388307638,1759068675279,-993.2,0.00036712,9]
[388307639,1759068675289,-5121.88,0.00036712,9]
[388307640,1759068675298,-480.0,0.00036712,9]
[388307641,1759068675307,-480.0,0.00036712,9]
[388307642,1759068675318,-480.0,0.00036712,9]
[388307643,1759068675327,-1482.23,0.00036712,9]
[388307644,1759068675337,-480.0,0.00036712,9]
[388307645,1759068675347,-722.48,0.00036712,9]
[388307646,1759068675356,-5174.09,0.00036712,9]
[388307647,1759068675366,-1892.82,0.00036712,9]
[388307648,1759068675377,-480.0,0.00036712,9]
[388307649,1759068675387,-1028.73,0.00036712,9]
[388307650,1759068675396,-480.0,0.00036712,9]
[388307651,1759068675405,-480.0,0.00036712,9]
[388307652,1759068675414,-480.0,0.00036712,9]
[388307653,1759068675424,-480.0,0.00036712,9]
[388307654,1759068675434,-480.0,0.00036712,9]
[388307655,1759068675443,-670.17,0.00036712,9]
[388307656,1759068675453,-1199.0,0.00036712,9]
[388307657,1759068675462,-958.01,0.00036712,9]
[388307658,1759068675470,-854.57,0.00036712,9]
[388307659,1759068675480,-1000.0,0.00036712,9]
[388307660,1759068675488,-480.0,0.00036712,9]
[388307661,1759068675497,-480.0,0.00036712,9]
[388307662,1759068675507,-1226.05,0.00036712,9]
[388307663,1759068675516,-480.0,0.00036712,9]
[388307664,1759068675525,-677.52,0.00036712,9]
[388307665,1759068675535,-1781.81,0.00036712,9]
[388307666,1759068675543,-480.0,0.00036712,9]
[388307667,1759068675553,-480.0,0.00036712,9]
[388307668,1759068675562,-1475.03,0.00036712,9]
[388307669,1759068675571,-1986.35,0.00036712,9]
[388307670,1759068675581,-1024.67,0.00036712,9]
[388307671,1759068675590,-480.0,0.00036712,9]
[388307672,1759068675601,-480.0,0.00036712,9]
[388307673,1759068675612,-480.0,0.00036712,9]
[388307674,1759068675621,-2224.04,0.00036712,9]
[388307675,1759068675630,-480.0,0.00036712,9]
[388307676,1759068675639,-1899.47,0.00036712,9]
[388307677,1759068675650,-480.0,0.00036712,9]
[388307678,1759068675659,-480.0,0.00036712,9]
[388307679,1759068675668,-4230.19,0.00036712,9]
[388307680,1759068675679,-480.0,0.00036712,9]
[388307681,1759068675689,-480.0,0.00036712,9]
[388307682,1759068675698,-2625.78,0.00036712,9]
[388307683,1759068675707,-482.83956113,0.00036712,9]
[388307684,1759068675716,-480.0,0.00036712,9]
[388307685,1759068675725,-1701.51,0.00036712,9]
[388307686,1759068675735,-555.63,0.00036712,9]
[388307687,1759068675744,-4315.32,0.00036712,9]
[388307688,1759068675753,-513.38,0.00036712,9]
[388307689,1759068675763,-766.72,0.00036712,9]
[388307690,1759068675772,-2676.22,0.00036712,9]
[388307691,1759068675781,-3680.23,0.00036712,9]
[388307692,1759068675790,-480.0,0.00036712,9]
[388307693,1759068675801,-495.20635525,0.00036712,9]
[388307694,1759068675810,-480.0,0.00036712,9]
[388307695,1759068675820,-1199.17,0.00036712,9]
[388307696,1759068675831,-480.0,0.00036712,9]
[388307697,1759068675840,-1096.04,0.00036712,9]
[388307698,1759068675849,-444.37612696,0.00036712,9]
[388307699,1759068675858,-669.82,0.00036712,9]
[388307700,1759068675868,-480.0,0.00036712,9]
[388307701,1759068675877,-550.1,0.00036712,9]
[388307702,1759068675886,-480.0,0.00036712,9]
[388307703,1759068675895,-5771.08,0.00036712,9]
[388307704,1759068675905,-480.0,0.00036712,9]
[388307705,1759068675914,-1116.74,0.00036712,9]
[388307706,1759068675922,-480.0,0.00036712,9]
[388307707,1759068675933,-1030.32,0.00036712,9]
[388307708,1759068675942,-719.19,0.00036712,9]
[388307709,1759068675951,-902.24,0.00036712,9]
[388307710,1759068675961,-9162.48,0.00036712,9]
[388307711,1759068675969,-480.0,0.00036712,9]
[388307712,1759068675978,-480.0,0.00036712,9]
[388307713,1759068675987,-3202.49,0.00036712,9]
[388307714,1759068675997,-480.0,0.00036712,9]
[388307715,1759068676006,-480.0,0.00036712,9]
[388307716,1759068676015,-480.0,0.00036712,9]
[388307717,1759068676024,-480.0,0.00036712,9]
[388307718,1759068676033,-480.0,0.00036712,9]
[388307719,1759068676043,-480.0,0.00036712,9]
[388307720,1759068676052,-202.738867,0.00036712,9]
[388307721,1759068676062,-4051.83,0.00036712,9]
[388307722,1759068676071,-1094.06,0.00036712,9]
[388307723,1759068676081,-480.0,0.00036712,9]
[388307724,1759068676090,-1909.08,0.00036712,9]
[388307725,1759068676099,-800.84,0.00036712,9]
[388307726,1759068676108,-3848.32,0.00036712,9]
[388307727,1759068676118,-480.0,0.00036712,9]
[388307728,1759068676129,-613.52,0.00036712,9]
[388307729,1759068676138,-1482.22,0.00036712,9]
[388307730,1759068676147,-1451.08,0.00036712,9]
[388307731,1759068676157,-480.0,0.00036712,9]
[388307732,1759068676166,-996.79,0.00036712,9]
[388307733,1759068676175,-1070.79,0.00036712,9]
[388307734,1759068676184,-480.0,0.00036712,9]
[388307735,1759068676193,-480.0,0.00036712,9]
[388307736,1759068676203,-269.97199708,0.00036712,9]
[388307737,1759068676213,-1099.87,0.00036712,9]
[388307738,1759068676223,-480.0,0.00036712,9]
[388307739,1759068676232,-4305.51,0.00036712,9]
[388307740,1759068676241,-9570.51,0.00036712,9]
[388307741,1759068676250,-480.0,0.00036712,9]
[388307742,1759068676259,-480.0,0.00036712,9]
[388307743,1759068676269,-480.0,0.00036712,9]
[388307744,1759068676278,-480.0,0.00036712,9]
[388307745,1759068676288,-480.0,0.00036712,9]
[388307746,1759068676299,-2509.13,0.00036712,9]
[388307747,1759068676308,-927.64,0.00036712,9]
[388307748,1759068676318,-2815.64,0.00036712,9]
[388307749,1759068676327,-480.0,0.00036712,9]
[388307750,1759068676337,-480.0,0.00036712,9]
[388307751,1759068676347,-1142.03,0.00036712,9]
[388307752,1759068676356,-552.37,0.00036712,9]
[388307753,1759068676366,-480.0,0.00036712,9]
[388307754,1759068676375,-524.79,0.00036712,9]
[388307755,1759068676384,-1156.14,0.00036712,9]
[388307756,1759068676394,-1882.54,0.00036712,9]
[388307757,1759068676403,-868.8,0.00036712,9]
[388307758,1759068676413,-1528.64,0.00036712,9]
[388307759,1759068676422,-2087.73,0.00036712,9]
[388307760,1759068676431,-2188.71,0.00036712,9]
[388307761,1759068676440,-480.0,0.00036712,9]
[388307762,1759068676449,-1284.61,0.00036712,9]
[388307763,1759068676458,-665.69,0.00036712,9]
[388307764,1759068676467,-989.93,0.00036712,9]
[388307765,1759068676476,-588.18,0.00036712,9]
[388307766,1759068676486,-981.44,0.00036712,9]
[388307767,1759068676498,-480.0,0.00036712,9]
[388307768,1759068676507,-729.11,0.00036712,9]
[388307769,1759068676516,-480.0,0.00036712,9]
[388307770,1759068676526,-704.86,0.00036712,9]
[388307771,1759068676535,-480.0,0.00036712,9]
[388307772,1759068676544,-10297.24,0.00036712,9]
[388307773,1759068676553,-519.61,0.00036712,9]
[388307774,1759068676563,-867.04,0.00036712,9]
[388307775,1759068676572,-480.0,0.00036712,9]
[388307776,1759068676581,-596.52,0.00036712,9]
[388307777,1759068676590,-1000.44059752,0.00036721,5]
[388307778,1759068676602,-1500.0,0.00036768,5]
[388307779,1759068676612,-191.56170557,0.00036768,5]
[388307780,1759068676621,-1500.0,0.00036768,5]
[388307781,1759068676631,-1500.0,0.00036768,5]
[388307782,1759068676642,-1500.0,0.00036768,5]
[388307783,1759068676652,-1500.0,0.00036768,5]
[388307784,1759068676661,-1500.0,0.00036768,5]
[388307785,1759068676670,-1401.03875953,0.00036768,5]
[388307786,1759068676680,-1500.0,0.00036768,5]
[388307787,1759068676859,-352.53748691,0.00036768,5]
[388307788,1759068676868,-1500.0,0.00036768,5]
[388307789,1759068676878,-105050.82625699,0.00036789,60]
[388307791,1759068685049,1491.67761542,0.000188,2]
[388307820,1759068950814,10000.0,0.00025,7]
[388307859,1759069050669,0.01,0.00025205,2]
[388307860,1759069050693,4999.99,0.00025205,2]
[388307912,1759069634167,1417.4843072,0.00025204,2]
[388307913,1759069641102,-396.42767207,0.00030309,30]
[388307914,1759069641122,-150.0,0.00030309,30]
[388307915,1759069641144,-837.981993,0.00032877,2]
[388307916,1759069641164,-160.0,0.00032924,2]
[388307917,1759069641189,-2893.4398124,0.00032928,2]
[388307918,1759069641211,-187.88705139,0.0003389,2]
[388307919,1759069641233,-250.7251182,0.0003389,2]
[388307920,1759069641258,-400.0,0.00033956,2]
[388307921,1759069641279,-1600.0,0.00033956,3]
[388307922,1759069641300,-327.48,0.00033957,3]
[388307923,1759069641323,-84.87260543,0.00033957,3]
[388307924,1759069647099,-78.86739457,0.00033957,3]
[388307925,1759069647119,-491.23,0.00033957,3]
[388307926,1759069647140,-379.53345522,0.00033964,2]
[388307927,1759069714398,366.49426001,0.0002,2]
[388307928,1759069714663,3216.04143279,0.00015,2]
[388307929,1759069714685,10000.01,0.00015,2]
[388307930,1759069714706,2721.881979,0.00015,2]
[388307931,1759069715062,160.0,0.00025205,2]
[388307932,1759069715089,7118.128021,0.00025,2]
[388307933,1759069715111,9854.74262299,0.00025,2]
[388307939,1759069722755,145.26737701,0.000225,2]
[388307940,1759069722785,872.5239069,0.000225,2]
[388307942,1759069725204,9127.4860931,0.00019063,7]
[388307943,1759069725228,10000.01,0.00019063,7]
[388307944,1759069725250,10000.01,0.00019063,7]
[388307945,1759069725280,3063.5412169,0.00019063,7]
[388307948,1759069745086,-1000.0,0.000255,2]
[388307949,1759069745107,-1671.26139,0.00026,30]
[388307950,1759069745126,-1761.56576743,0.0003,2]
[388307952,1759069794387,2911.60676921,0.00025205,2]
[388307953,1759069794408,2088.39323079,0.00025205,2]
[388307954,1759069803182,5100.60970546,0.00025252,2]
[388307955,1759069803204,2898.35050034,0.00025252,2]
[388307956,1759069803224,943.35643603,0.00025252,2]
[388307957,1759069828113,1658.63474591,0.0002699,2]
[388307958,1759069828134,2009.82171709,0.0002699,2]
[388307975,1759069832515,-256.93641543,0.00031439,2]
[388307977,1759069832525,-447.31358472,0.00031439,2]
[388307979,1759069832536,-52.68641528,0.00031439,2]
[388307981,1759069832545,-500.0,0.00031439,2]
[388307983,1759069832554,-348.40341381,0.00031439,2]
[388307985,1759069832565,-182.81250463,0.00031439,2]
[388307987,1759069832574,-392.27646502,0.00031439,2]
[388307989,1759069832587,-107.72353498,0.00031439,2]
[388307991,1759069832596,-568.40737931,0.00031439,2]
[388307993,1759069832606,-338.6470928,0.00031439,2]
[388308060,1759069835885,-161.3529072,0.00031439,2]
[388308061,1759069835894,-500.0,0.00031439,2]
[388308062,1759069835904,-500.0,0.00031439,2]
[388308063,1759069835913,-500.0,0.00031439,2]
[388308064,1759069835922,-213.04477543,0.00031439,2]
[388308065,1759069835932,-96.61538667,0.00031439,2]
[388308066,1759069835943,-403.38461333,0.00031439,2]
[388308068,1759069835959,-500.0,0.00031439,2]
[388308070,1759069835968,-419.59549313,0.00031439,2]
[388308072,1759069835985,-80.40450687,0.00031439,2]
[388308073,1759069835995,-500.0,0.00031439,2]
[388308074,1759069836004,-500.0,0.00031439,2]
[388308075,1759069836013,-13174.1791841,0.0003144,2]
[388308077,1759069838342,-34325.91564149,0.0003144,2]
[388308078,1759069838355,-1089.8,0.0003144,2]
[388308079,1759069838442,-184880.61579435,0.0003144,2]
[388308080,1759069838456,-2542.82726527,0.0003144,2]
[388308121,1759069840319,-368.036,0.0003144,2]
[388308122,1759069840348,-724.59919563,0.0003144,2]
[388308123,1759069840359,-4552.99809628,0.0003144,2]
[388308124,1759069840370,-7691.63195707,0.0003144,2]
[388308125,1759069840381,-24495.02211169,0.0003144,2]
[388308126,1759069840391,-15517.06491144,0.0003144,2]
[388308127,1759069840402,-32836.30834215,0.0003144,2]
[388308128,1759069840413,-29101.10482971,0.0003144,2]
[388308129,1759069841152,901.56634747,0.00025205,2]
[388308130,1759069841175,4098.43365253,0.00025205,2]
[388308215,1759069846522,-293.29,0.0003143,3]
[388308216,1759069846532,-545170.89667082,0.0003144,2]
[388308217,1759069846541,-586.58,0.000328,3]
[388308218,1759069846551,-290101.3589517,0.0003344,2]
[388308219,1759069846895,-3926.44326393,0.0003344,2]
[388308220,1759069846918,-1370.9312693,0.0003344,2]
[388308247,1759070244061,2924.46,0.00025205,2]
[388308249,1759070305549,417.15472785,0.00025205,2]
[388308250,1759070484208,-205.9028969,0.0002587,2]
[388308251,1759070489836,-203.45255763,0.0002587,2]
[388308252,1759070492320,-437.26647262,0.0002587,2]
[388308253,1759070495960,-184.7570488,0.0002587,2]
[388308254,1759070497501,-296.43717973,0.0002587,2]
[388308255,1759070503055,-210.15813308,0.0002587,2]
[388308256,1759070505240,-170.46424375,0.0002587,2]
[388308257,1759070508577,-204.06731607,0.0002587,2]
[388308258,1759070510018,-158.9131495,0.0002587,2]
[388308259,1759070512901,-281.30376254,0.0002587,2]
[388308260,1759070516151,-286.23654563,0.0002587,2]
[388308261,1759070518089,-154.49509221,0.0002587,2]
[388308262,1759070519952,-650.70160983,0.0002587,2]
[388308263,1759070520576,281.30376254,0.00025205,2]
[388308264,1759070523432,-300.0,0.0002587,2]
[388308265,1759070525800,-170.67103699,0.0002587,2]
[388308266,1759070529047,286.23654563,0.00025205,2]
[388308267,1759070545573,1275.86773903,0.00025205,2]
[388308269,1759070553328,350.67474697,0.00025205,2]
[388308270,1759070558592,239.66477904,0.0003395,60]
[388308275,1759070829133,-640.0,0.00025869,2]
[388308276,1759070829155,-10.83848848,0.00028945,2]
[388308277,1759070951129,-241.5294014,0.00028383,2]
[388308278,1759070951149,-171.68809145,0.00028845,2]
[388308279,1759070951170,-298.99178552,0.00028945,2]
[388308280,1759070958473,514.9,0.00025205,2]
[388308281,1759070973088,-400.0,0.00030868,2]
[388308282,1759070973109,-1600.0,0.00030869,2]
[388308283,1759070973130,-206.9781883,0.00030869,2]
[388308284,1759070973150,-500.0,0.00030869,2]
[388308285,1759070973169,-439.66494621,0.00030869,2]
[388308286,1759070973189,-238.70558816,0.00030869,2]
[388308287,1759070973209,-500.0,0.00030869,2]
[388308288,1759070973229,-338.7906794,0.00030869,2]
[388308289,1759070973250,-212.35648834,0.00030869,2]
[388308290,1759070973270,-22329.72957834,0.0003087,2]
[388308308,1759071032655,-400.0,0.00030869,2]
[388308310,1759071032667,-7858.44337638,0.0003087,2]
[388308312,1759071032678,-666.0,0.0003119,2]
[388308313,1759071032688,-1270.6388958,0.0003185,120]
[388308314,1759071032701,-1305.8752058,0.00031914,2]
[388308315,1759071032711,-1062.9618945,0.00031921,2]
[388308316,1759071032721,-2965.5840404,0.00031921,2]
[388308317,1759071032731,-174.714,0.0003197,2]
[388308318,1759071032741,-297.11438677,0.00031985,2]
[388308319,1759071032750,-175.87478401,0.00031985,2]
[388308320,1759071032760,-500.0,0.00031999,2]
[388308321,1759071032769,-179.8554908,0.00031999,2]
[388308322,1759071032779,-424.32718868,0.00031999,2]
[388308323,1759071032789,-500.0,0.00031999,2]
[388308325,1759071032798,-500.0,0.00031999,2]
[388308327,1759071032807,-500.0,0.00031999,2]
[388308328,1759071032817,-500.0,0.00031999,2]
[388308330,1759071032826,-500.0,0.00031999,2]
[388308332,1759071032835,-500.0,0.00031999,2]
[388308334,1759071032845,-500.0,0.00031999,2]
[388308336,1759071032855,-500.0,0.00031999,2]
[388308338,1759071032864,-500.0,0.00031999,2]
[388308340,1759071032874,-500.0,0.00031999,2]
[388308341,1759071032884,-184.07371963,0.00031999,2]
[388308342,1759071032898,-500.0,0.00031999,2]
[388308343,1759071032907,-84.1456655,0.00031999,2]
[388308344,1759071032932,-415.8543345,0.00031999,2]
[388308345,1759071032941,-500.0,0.00031999,2]
[388308346,1759071032951,-500.0,0.00031999,2]
[388308347,1759071032962,-500.0,0.00031999,2]
[388308348,1759071032972,-500.0,0.00031999,2]
[388308349,1759071032981,-500.0,0.00031999,2]
[388308350,1759071032990,-500.0,0.00031999,2]
[388308351,1759071032999,-500.0,0.00031999,2]
[388308352,1759071033008,-400.0,0.00031999,2]
[388308353,1759071033018,-219.07153715,0.00032,120]
[388308354,1759071033027,-176.59038018,0.00032,120]
[388308355,1759071033036,-266.69188251,0.00032,120]
[388308356,1759071033046,-284.64812441,0.00032,120]
[388308358,1759071033055,-3062.68,0.00032294,4]
[388308360,1759071033065,-160.0,0.00032296,2]
[388308362,1759071033074,-189.35579204,0.00032296,2]
[388308364,1759071033083,-160.0,0.00032296,2]
[388308366,1759071033093,-160.0,0.00032296,2]
[388308368,1759071033102,-233.82138094,0.00032296,2]
[388308370,1759071033111,-176.59038018,0.000323,120]
[388308372,1759071033121,-176.59038018,0.000326,120]
[388308374,1759071033131,-151.0,0.000328,10]
[388308376,1759071033140,-831.333034,0.00032877,2]
[388308378,1759071033149,-560.0,0.0003324,2]
[388308380,1759071033159,-200.0,0.000333,120]
[388308382,1759071033168,-1674.80222806,0.00033335,2]
[388308384,1759071033178,-2409.3034932,0.00033335,2]
[388308386,1759071033187,-252.18216456,0.0003334,2]
[388308388,1759071033197,-11041.87319674,0.0003334,2]
[388308430,1759071038858,-230004.48599034,0.0003334,2]
[388308431,1759071038871,-8841.70702989,0.0003334,2]
[388308435,1759071039016,-72.31538761,0.0003334,2]
[388308442,1759071040806,-64.44915076,0.0003334,2]
[388308443,1759071040844,-43.38944445,0.0003334,2]
[388308446,1759071040863,-2853.60001914,0.0003334,2]
[388308656,1759071046590,-500.0,0.00033339,7]
[388308657,1759071046599,-500.0,0.00033339,7]
[388308658,1759071046608,-500.0,0.00033339,7]
[388308659,1759071046617,-231046.30225198,0.0003334,2]
[388308705,1759071127464,182.0,0.00025863,14]
[388308726,1759071272864,200.0,0.000251,7]
[388308745,1759071943117,-200.0,0.0002891,7]
[388308746,1759071943137,-286.91,0.000291,7]
[388308747,1759071943160,-200.0,0.000301,7]
[388308748,1759071943180,-300.0,0.00030383,2]
[388308749,1759071943201,-300.0,0.00030383,2]
[388308750,1759071943223,-400.0,0.00030383,2]
[388308751,1759071943245,-576.1804219,0.00030383,2]
[388308755,1759072030279,-261.8195781,0.00030383,2]
[388308756,1759072030300,-400.0,0.00030383,2]
[388308757,1759072030320,-500.0,0.00030384,2]
[388308758,1759072030340,-500.0,0.00030384,2]
[388308759,1759072030363,-160.815614,0.00030384,2]
[388308760,1759072030381,-500.0,0.00030384,2]
[388308761,1759072030401,-410.00194386,0.00030384,2]
[388308762,1759072041089,-89.99805614,0.00030384,2]
[388308763,1759072041108,-500.0,0.00030384,2]
[388308764,1759072041129,-496.45953265,0.00030384,2]
[388308765,1759072145107,-300.0,0.00028865,2]
[388308766,1759072145126,-2566.07408249,0.00028866,2]
[388308767,1759072145147,-3695.14667878,0.00028866,2]
[388308768,1759072145166,-4795.85287874,0.00028866,2]
[388308769,1759072147078,-228.62281773,0.00028866,2]
[388308770,1759072147099,-285.98900077,0.00029671,2]
[388308771,1759072147119,-309.830274,0.00029735,2]
[388308773,1759072149080,-1383.0,0.00030383,2]
[388308774,1759072149101,-3.54046735,0.00030384,2]
[388308775,1759072149123,-217.2990508,0.00030384,2]
[388308776,1759072149144,-179.92586582,0.00030384,2]
[388308777,1759072149167,-173.08366039,0.00030384,2]
[388308778,1759072149193,-500.0,0.00030384,2]
[388308779,1759072149216,-456.13677754,0.00030384,2]
[388308782,1759072231871,-400.0,0.00030867,2]
[388308783,1759072231880,-500.0,0.00030867,2]
[388308784,1759072231889,-190.81100564,0.00030867,2]
[388308785,1759072231899,-349.83674684,0.00030868,2]
[388308786,1759072231909,-591.6635059,0.00030868,2]
[388308787,1759072231918,-591.6635059,0.00030868,2]
[388308788,1759072231927,-591.6635059,0.00030868,2]
[388308789,1759072231936,-591.6635059,0.00030868,2]
[388308790,1759072231946,-591.6635059,0.00030868,2]
[388308791,1759072231955,-591.6635059,0.00030868,2]
[388308792,1759072231966,-591.6635059,0.00030868,2]
[388308793,1759072231975,-591.6635059,0.00030868,2]
[388308794,1759072231984,-591.6635059,0.00030868,2]
[388308795,1759072231994,-591.6635059,0.00030868,2]
[388308796,1759072232003,-591.6635059,0.00030868,2]
[388308797,1759072232012,-591.6635059,0.00030868,2]
[388308798,1759072232021,-591.6635059,0.00030868,2]
[388308799,1759072232031,-591.6635059,0.00030868,2]
[388308800,1759072232041,-187.96316493,0.00030868,2]
[388308801,1759072232052,-403.70034097,0.00030868,2]
[388308802,1759072232062,-633.92518488,0.00030868,2]
[388308803,1759072232072,-633.92518488,0.00030868,2]
[388308804,1759072232081,-633.92518488,0.00030868,2]
[388308805,1759072232090,-633.92518488,0.00030868,2]
[388308806,1759072232099,-633.92518488,0.00030868,2]
[388308807,1759072232109,-633.92518488,0.00030868,2]
[388308808,1759072232118,-578.9850022,0.00030868,2]
[388308809,1759072232128,-578.9850022,0.00030868,2]
[388308810,1759072232138,-578.9850022,0.00030868,2]
[388308811,1759072232147,-578.9850022,0.00030868,2]
[388308812,1759072232157,-578.9850022,0.00030868,2]
[388308813,1759072232167,-578.9850022,0.00030868,2]
[388308814,1759072232177,-15137.01018292,0.00030869,2]
[388308815,1759072232189,-5101.73116629,0.00030869,2]
[388308816,1759072232200,-255.57243791,0.00030869,2]
[388308817,1759072232212,-983.96121195,0.00030869,2]
[388308818,1759072232239,-28521.72500093,0.00030869,2]
[388308819,1759072232248,-173.049,0.0003087,120]
[388308820,1759072232257,-200.0,0.00031,7]
[388308821,1759072232267,-666.0,0.00031046,2]
[388308822,1759072232277,-1000.0,0.00031137,30]
[388308823,1759072232286,-179.1578296,0.000319,2]
[388308824,1759072232295,-553.04288812,0.00031958,2]
[388308825,1759072232307,-199.0,0.00031998,14]
[388308826,1759072232318,-175.70647556,0.00032,120]
[388308827,1759072232327,-182.3516398,0.00032,120]
[388308828,1759072232336,-317.61257772,0.00032296,2]
[388308829,1759072232348,-362.98580311,0.00032296,2]
[388308830,1759072232357,-566.59815204,0.00032296,2]
[388308831,1759072232366,-199.0,0.00032546,15]
[388308832,1759072232376,-500.0,0.00032876,120]
[388308833,1759072232386,-884.21618,0.00032877,2]
[388308834,1759072232396,-3947.763,0.00032877,60]
[388308835,1759072232405,-656.56262238,0.00033,15]
[388308836,1759072232415,-199.0,0.00033094,16]
[388308837,1759072232424,-2139.10883274,0.00033139,3]
[388308838,1759072232434,-6642.29550478,0.00033139,2]
[388308839,1759072232443,-112579.48925469,0.00033139,2]
[388308840,1759072232454,-10046.19163911,0.00033139,2]
[388308945,1759072237832,-1230.51202142,0.00033139,2]
[388308946,1759072237912,-183451.60681626,0.00033139,2]
[388309125,1759073147133,-233.82138094,0.00029,10]
[388309126,1759073147154,-202.9079595,0.00029946,2]
[388309127,1759073147174,-71.07520045,0.0003,7]
[388309129,1759073231100,-128.92479955,0.0003,7]
[388309130,1759073231120,-33.22478054,0.0003,14]
[388309132,1759073251089,-192.75618599,0.0003,14]
[388309133,1759073270952,4514.70375739,0.00018,2]
[388309135,1759073298420,3813.17311668,0.00025205,2]
[388309137,1759073342777,160.0,0.00025205,2]
[388309138,1759073345077,-300.0,0.00027499,2]
[388309139,1759073345097,-9648.88197093,0.000275,2]
[388309140,1759073345117,-420.0,0.00029714,2]
[388309141,1759073345136,-1000.0,0.00029922,30]
[388309142,1759073345157,-149.39707396,0.0003,14]
[388309143,1759073345177,-405.61243492,0.0003,10]
[388309144,1759073345196,-1912.50584858,0.0003,2]
[388309145,1759073345215,-971.61358698,0.0003,10]
[388309146,1759073353107,-604.7039102,0.0003,10]
[388309147,1759073353130,-559.09040043,0.0003,5]
[388309148,1759073353154,-621.8542133,0.00030046,2]
[388309149,1759073353742,1087.72670424,0.00025205,2]
[388309150,1759073353771,912.27329576,0.00025205,2]
[388309151,1759073368090,-603.147653,0.0003031,2]
[388309166,1759073432082,-500.0,0.0003064,7]
[388309167,1759073432091,-151.46277572,0.0003129,10]
[388309168,1759073432101,-300.0,0.00031446,3]
[388309169,1759073432111,-248.53722428,0.00031446,3]
[388309170,1759073432139,-51.46277572,0.00031446,3]
[388309171,1759073432149,-300.0,0.00031446,3]
[388309172,1759073432158,-1200.0,0.00031446,3]
[388309173,1759073432167,-1600.0,0.00031447,3]
[388309174,1759073432176,-300.0,0.00031447,3]
[388309175,1759073432185,-400.0,0.00031447,2]
[388309176,1759073432195,-500.0,0.00031448,2]
[388309177,1759073432204,-500.0,0.00031448,2]
[388309178,1759073432214,-148.03062728,0.00031448,2]
[388309189,1759073432368,-59.43019039,0.00031448,2]
[388309432,1759073949129,49.1850832,0.00025205,2]
[388309433,1759073949151,785.1243725,0.00025205,2]
[388309441,1759074346127,-164.0,0.00025918,14]
[388309442,1759074346147,-976.83,0.00028,2]
[388309443,1759074346168,-190.8162927,0.00028734,30]
[388309444,1759074346190,-225.73076891,0.00028771,30]
[388309446,1759074434098,-288.19883197,0.00029024,2]
[388309448,1759074545088,-170.69690316,0.0002816,30]
[388309449,1759074545110,-150.0,0.0002816,30]
[388309450,1759074545132,-2605.24098043,0.00029024,2]
[388309451,1759074545153,-300.0,0.00029775,2]
[388309452,1759074545176,-155.59802734,0.00029776,2]
[388309453,1759074545196,-500.0,0.00029776,2]
[388309454,1759074545218,-500.0,0.00029776,2]
[388309455,1759074545240,-500.0,0.00029776,2]
[388309456,1759074545262,-154.22099213,0.00029776,2]
[388309457,1759074545284,-474.36480271,0.00029776,2]
[388309458,1759074545307,-206.9781883,0.00029776,2]
[388309459,1759074545329,-500.0,0.00029776,2]
[388309460,1759074545350,-212.35648834,0.00029776,2]
[388309461,1759074545370,-439.66494621,0.00029776,2]
[388309462,1759074545391,-238.70558816,0.00029776,2]
[388309463,1759074545412,-500.0,0.00029776,2]
[388309464,1759074545433,-338.7906794,0.00029776,2]
[388309465,1759074545452,-5009.1888888,0.00029777,2]
[388309466,1759074545472,-301.573826,0.00029805,2]
[388309467,1759074545494,-472.54968784,0.00030159,2]
[388309468,1759074545513,-236.01445017,0.00030159,2]
[388309469,1759074545534,-569.85331715,0.00030159,2]